Cogmind - Beta 15 @@@ ROGUE MODE // 2025.06.14 @ 11:38:36 Player: ned_arb Result: Self-destructed Performance ------------- Evolutions (3) 1500 Regions Visited (6) 1200 Robots Destroyed (131) 655 Value Destroyed (3882) 3882 Prototype IDs (4) 80 Alien Tech Used (0) 0 Bonus (259) 259 TOTAL SCORE: 7576 Bonus ------- High Alert Combat Kills 93 Follower Combat Kills 166 Cogmind --------- Core Integrity 437/700 Matter 187/300 Energy 190/290 System Corruption 5% Temperature Cool (0) Movement Walking (140) Location -7/Factory Parts ------- > --- POWER (1) -------- Improved Deuterium Engine > --- PROPULSION (4) --- Light Armored Exoskeleton Light Armored Exoskeleton > --- UTILITY (5) ------ Large Storage Unit Advanced Targeting Computer Hacking Suite High-powered Tractor Beam > --- WEAPON (3) ------- Gauss Rifle Gauss Rifle > --- INVENTORY (15) --- Seismic Detector Advanced Targeting Computer Kinecellerator Transmission Jammer Medium Armor Plating Medium Armor Plating Improved Light Armor Plating Hacking Suite Heavy Assault Rifle Heavy Rocket Launcher Heavy Rocket Launcher Remote Datajack Power Maul Peak State ------------ > --- POWER ------------ Improved Deuterium Engine > --- PROPULSION ------- Light Armored Exoskeleton Light Armored Exoskeleton > --- UTILITY ---------- Large Storage Unit Advanced Targeting Computer Kinecellerator Improved Medium Armor Plating Hacking Suite > --- WEAPON ----------- Gauss Rifle Gauss Rifle Gauss Rifle > --- INVENTORY -------- Improved Deuterium Engine Seismic Detector Advanced Targeting Computer Transmission Jammer Medium Armor Plating Medium Armor Plating Hacking Suite High-powered Tractor Beam Heavy Assault Rifle Gauss Rifle Heavy Rocket Launcher Heavy Rocket Launcher Remote Datajack Power Maul [Rating: 51] Favorites ----------- Power Improved Ion Engine Engine Improved Ion Engine Power Core Light Nuclear Core Propulsion Light Treads Treads Light Treads Leg Light Armored Exoskeleton Utility Seismic Detector Device Seismic Detector Storage Large Storage Unit Processor Advanced Targeting Computer Hackware Hacking Suite Protection Improved Light Armor Plating Weapon Autogun Energy Gun Medium Laser Ballistic Gun Autogun Launcher Mini Grenade Launcher Special Weapon Plasma Cutter Build | -11 -10 -10 -10 -9 -8 -7 ------- Run | Yrd Mat Min Exi Min Mat Fac Slots Evolved 6 | . . . . . 4 2 Power . | . . . . . . . Propulsion 2 | . . . . . 1 1 Utility 3 | . . . . . 2 1 Weapon 1 | . . . . . 1 . Parts Attached 76 | 8 9 3 . 3 24 29 Power 8 | 2 1 1 . 1 . 3 Engine 7 | 2 1 1 . 1 . 2 Core 1 | . . . . . . 1 Reactor . | . . . . . . . Propulsion 19 | 2 1 . . . 8 8 Treads 17 | 2 1 . . . 8 6 Leg 2 | . . . . . . 2 Wheel . | . . . . . . . Hover . | . . . . . . . Flight . | . . . . . . . Utility 29 | 2 4 1 . 1 11 10 Device 10 | 1 . . . 1 3 5 Storage 7 | 1 3 . . . 2 1 Processor 3 | . 1 . . . 1 1 Hackware 1 | . . . . . 1 . Protection 8 | . . 1 . . 4 3 Artifact . | . . . . . . . Weapon 20 | 2 3 1 . 1 5 8 Energy Gun 1 | 1 . . . . . . Energy Cannon . | . . . . . . . Ballistic Gun 14 | 1 2 1 . . 4 6 Ballistic Cannon . | . . . . . . . Launcher 4 | . . . . 1 1 2 Special Weapon 1 | . 1 . . . . . Impact Weapon . | . . . . . . . Slashing Weapon . | . . . . . . . Piercing Weapon . | . . . . . . . Special Melee Weapon . | . . . . . . . Unidentified Prototypes 2 | . . . . . 2 . Parts Lost 15 | . . 2 . . 6 7 Power 1 | . . . . . . 1 Propulsion 3 | . . . . . 3 . Utility 7 | . . 1 . . 3 3 Weapon 4 | . . 1 . . . 3 Highest Loss Streak 4 | . . 2 . . 4 2 To Critical Strikes . | . . . . . . . Average Backups 13 | 1 8 11 12 13 14 16 Power 1 | . . 1 2 2 1 1 Propulsion 1 | . 1 2 2 1 3 1 Utility 4 | . 1 2 2 4 3 7 Weapon 5 | . 3 4 5 4 6 6 Tool/Special . | . . . . . . . Unused Backups 26 | . 1 . 1 2 4 18 Power 1 | . . . . . . 1 Propulsion 2 | . . . . . . 2 Utility 13 | . 1 . 1 . 3 8 Weapon 9 | . . . . 2 1 6 Tool/Special 1 | . . . . . . 1 Average Slot Usage (%) 95 | . 99 99 100 100 96 89 Engine 9 | . 14 14 14 14 9 6 Treads 21 | . 27 28 28 28 26 10 Leg 3 | . . . . . . 9 Device 7 | . 14 8 . 12 3 6 Storage 10 | . 14 14 14 14 9 7 Processor 3 | . . . . . 4 7 Hackware 3 | . . . . . 5 7 Protection 6 | . . 4 14 1 10 6 Ballistic Gun 25 | . 26 28 28 27 26 22 Peak Build Rating 51 | 7 10 14 14 14 31 51 Average Rating 25 | 5 9 11 14 13 23 40 On Entrance 12 | . 7 10 14 14 13 26 Naked Turns . | . . . . . . . Heaviest Build 66 | 15 32 34 34 34 64 66 Greatest Support 83 | 40 40 40 40 40 63 83 Greatest Overweight (x) 21 | 1 . . . . 1 21 Average Overweight (x) . | . . . . . . . Largest Inventory Capacity 20 | 8 15 15 15 15 20 20 Average Capacity 15 | 7 10 15 15 15 17 18 Most Carried 20 | 5 11 13 13 15 20 20 Average Carried 14 | 2 8 11 12 14 15 17 Final Capacity 20 | 8 15 15 15 15 20 15 Final Carried 20 | 5 11 13 13 15 20 13 Class Distribution -------------------- 39% | Mutant 35% | Gunner 13% | Scavenger-Gunner 11% | Scavenger-Tank Dominant Class ---------------- Mutant | -10/Materials Mutant | -10/Mines Mutant | -10/Exiles Mutant | -9/Mines Gunner | -8/Materials Gunner | -7/Factory Resources | -11 -10 -10 -10 -9 -8 -7 ----------- Run | Yrd Mat Min Exi Min Mat Fac Matter Collected 3882 | 287 443 100 . 172 1221 1659 Remotely 527 | . . . . . 244 283 Salvage Created 4586 | 73 535 40 . 335 1415 2188 Parts 296 | 10 26 4 . 37 82 137 Haulers Intercepted 8 | . 2 . . . 4 2 Recyclers Shooed . | . . . . . . . Parts Field Recycled . | . . . . . . . Retrieved Matter . | . . . . . . . Parts Self-Destructed . | . . . . . . . Prevented . | . . . . . . . Kills | -11 -10 -10 -10 -9 -8 -7 ------- Run | Yrd Mat Min Exi Min Mat Fac Combat Hostiles Destroyed 87 | . 7 2 . 15 25 38 Guns 66 | . 7 2 . 3 21 33 AOE 21 | . . . . 12 4 5 Classes Destroyed 17 | 1 5 2 . 3 3 3 Worker 7 | . . . . . 3 4 Builder 7 | . . . . . . 7 Tunneler 7 | 3 . . . 1 2 1 Hauler 8 | . 2 . . . 4 2 Recycler 5 | . 1 . . . 1 3 Mechanic 1 | . . . . . 1 . Operator 3 | . 1 . . . 1 1 Watcher 6 | . 3 . . . 3 . Swarmer 19 | . . 1 . 8 6 4 Grunt 40 | . 7 . . 4 12 17 Brawler 2 | . . . . 1 1 . Duelist 1 | . . . . . . 1 Protector 1 | . . . . 1 . . Sentry 16 | . . . . 1 5 10 Demolisher 1 | . . 1 . . . . Hunter 2 | . . . . . 1 1 Programmer 5 | . . . . . . 5 Best Kill Streak 16 | 3 3 1 . 4 7 16 Combat Bots Only 7 | . 2 1 . 4 7 7 Max Kills in Single Turn 5 | 1 1 1 . 3 5 3 Gunslinging . | . . . . . . . Exploded 4 | . . . . 3 4 1 Melee . | . . . . . . . Uniques/NPCs Destroyed . | . . . . . . . Combat | -11 -10 -10 -10 -9 -8 -7 -------- Run | Yrd Mat Min Exi Min Mat Fac Hostile Shots Fired 661 | . 39 12 . 20 113 477 Missed 217 | . 8 2 . 5 23 179 Hits 444 | . 31 10 . 15 90 298 Melee 8 | . . . . . 3 5 Projectile 436 | . 31 10 . 15 87 293 AOE 7 | . . 6 . . . 1 Critical Strikes 14 | . 2 . . . 3 9 Damage Taken 5606 | . 434 289 . 201 1272 3410 Core 557 | . 88 45 . 34 127 263 Absorbed by Shields . | . . . . . . . Regen/Repaired (Parts) 40 | . . . . . . 40 Core Remaining (%) 69 | 100 . . . 33 76 . Volleys Fired 262 | 3 37 10 . 12 89 111 Largest 3 | 2 2 2 . 2 3 3 Hottest 84 | 70 70 46 . 53 69 84 Shots Fired 701 | 6 74 20 . 19 265 317 Gun 685 | 6 74 20 . 12 264 309 Cannon . | . . . . . . . Launcher 16 | . . . . 7 1 8 Special . | . . . . . . . Kinetic 681 | 3 73 20 . 12 264 309 Thermal 4 | 3 1 . . . . . Explosive 16 | . . . . 7 1 8 Electromagnetic . | . . . . . . . Robot Hit Streak 42 | 2 8 9 . 15 18 42 Robot Miss Streak 3 | 2 2 3 . 2 3 3 Penetration Max 1 | . . . . . . 1 Secondary Targets 8 | . . . . 1 5 2 Max Gunslinging Chain 1 | . . . . 1 1 1 Shots Hit Robots 495 | 3 53 14 . 11 177 237 Core Hits 231 | 3 18 2 . 20 76 112 Critical Kills 1 | . . . . . . 1 Critical Parts Destroyed 4 | . . 1 . . . 3 Critical Strikes 6 | 1 . 1 . . . 4 Burn 1 | 1 . . . . . . Destroy 5 | . . 1 . . . 4 Melee Attacks . | . . . . . . . Impact . | . . . . . . . Slashing . | . . . . . . . Piercing . | . . . . . . . Sneak Attacks . | . . . . . . . Combat Hostiles . | . . . . . . . Follow-up Attacks . | . . . . . . . Damage Inflicted 11073 | 46 823 226 . 1102 2913 5963 Guns 8406 | 46 823 221 . 155 2671 4490 Cannons . | . . . . . . . Explosions 2602 | . . . . 936 223 1443 Melee . | . . . . . . . Ramming 65 | . . 5 . 11 19 30 Kinetic 8381 | 21 823 221 . 155 2671 4490 Thermal 25 | 25 . . . . . . Explosive 2524 | . . . . 936 223 1365 Electromagnetic 78 | . . . . . . 78 Impact . | . . . . . . . Slashing . | . . . . . . . Piercing . | . . . . . . . Highest Corruption 5 | . . . . . . 5 Average Corruption 3 | . . . . . . 3 Corruption Purged 1 | . . . . . . 1 Corruption Blocked . | . . . . . . . Effects 55 | . . . . . . 55 Message Errors 13 | . . . . . . 13 Matter Fused 9 | . . . . . . 9 Heat Flow Errors 8 | . . . . . . 8 Energy Discharges 9 | . . . . . . 9 Parts Rejected 1 | . . . . . . 1 Data Loss (minor) 9 | . . . . . . 9 Data Loss (major) 1 | . . . . . . 1 Misfires 2 | . . . . . . 2 Alerts 2 | . . . . . . 2 Weapon Failures 1 | . . . . . . 1 Overload Shots . | . . . . . . . Overflow Damage 48 | . . . . 13 5 30 Projectiles . | . . . . . . . Explosions 48 | . . . . 13 5 30 Melee . | . . . . . . . Knockbacks 2 | . . . . . 1 1 Impact 2 | . . . . . 1 1 Kinetic . | . . . . . . . Secondary . | . . . . . . . Self-Inflicted Damage 155 | . . . . 53 . 102 Shots 7 | . . . . 2 . 5 Rammed 5 | . . 1 . 1 2 1 Targets Rammed 8 | . . 1 . 1 4 2 Kicked 1 | . . . . . . 1 Crushed 2 | . . . . . 2 . Highest Temperature 249 | 18 99 12 . 21 205 249 Average Temperature 44 | 9 34 6 . 9 44 51 Received Heat Transfer 1683 | . 282 . . 21 522 858 Effects 1 | . . . . . . 1 Interference 1 | . . . . . . 1 Siege Activations . | . . . . . . . Martial Activations . | . . . . . . . Shielding Activations . | . . . . . . . Robots Disrupted . | . . . . . . . Combat Hostiles . | . . . . . . . Robots Corrupted . | . . . . . . . Combat Hostiles . | . . . . . . . Parts Fried . | . . . . . . . Impact Corruptions . | . . . . . . . Robots Melted . | . . . . . . . Combat Hostiles . | . . . . . . . Parts Melted . | . . . . . . . Heat Transferred 148 | 148 . . . . . . Parts Sabotaged . | . . . . . . . Parts Stolen . | . . . . . . . Parts Stripped . | . . . . . . . Power Chain Reactions . | . . . . . . . Alert | -11 -10 -10 -10 -9 -8 -7 ------- Run | Yrd Mat Min Exi Min Mat Fac Maximum Alert Level 2 | . . . . . 1 2 Low Security (%) 86 | 100 100 100 . 100 93 70 Level 1 12 | . . . . . 6 27 Level 2 . | . . . . . . 2 Level 3 . | . . . . . . . Level 4 . | . . . . . . . Level 5 . | . . . . . . . High Security . | . . . . . . . Max Security . | . . . . . . . Peak Influence 662 | 10 116 32 . 198 215 662 Initial 94 | . . . . . 65 94 Average 86 | 1 20 2 . 44 102 130 Influence Increases 2942 | 15 269 60 . 426 947 1225 Destroy 0b10 Robot/C 1840 | . 140 40 . 300 600 760 Destroy 0b10 Robot/NC 235 | 15 35 . . 10 85 90 Destroy Leader 518 | . 50 20 . 40 164 244 Allied During Kill 21 | . . . . 10 11 . Successful Hack 87 | . 28 . . . 37 22 Disable Machine 75 | . 15 . . 15 15 30 Destroy Structure 106 | . 1 . . 51 20 34 Lose Combat Pursuer 60 | . . . . . 15 45 Influence Decreases 2291 | 15 268 61 . 258 906 783 Entered New Map 219 | . . 1 . . 103 115 Time Decay 1775 | 15 268 40 . 258 586 608 Lost Part 140 | . . 20 . . 60 60 Lost Ally 132 | . . . . . 132 . Purge Threat 25 | . . . . . 25 . Squads Dispatched 25 | . 1 . . 1 4 19 Investigation 3 | . . . . . 2 1 Extermination 6 | . . . . . . 6 Reinforcement 8 | . 1 . . . 2 5 Assault 1 | . . . . 1 . . Garrison 7 | . . . . . . 7 Intercept . | . . . . . . . Searches Triggered . | . . . . . . . Construction Impeded 2 | . . . . . . 2 Haulers Reinforced . | . . . . . . . Active Scanning Responses . | . . . . . . . Cargo Convoy Interrupts . | . . . . . . . Stealth | -11 -10 -10 -10 -9 -8 -7 --------- Run | Yrd Mat Min Exi Min Mat Fac Distress Signals 5 | . . . . . 3 2 Communications Jammed . | . . . . . . . Distress Signals . | . . . . . . . Times Spotted 135 | . 11 2 . 16 47 59 Peak Tracking Total 7 | . 3 1 . 5 4 7 Tactical Retreats 4 | . . . . . 1 3 Traps | -11 -10 -10 -10 -9 -8 -7 ------- Run | Yrd Mat Min Exi Min Mat Fac Traps Triggered 1 | . 1 . . . . . Indirectly . | . . . . . . . Trap Hack Attempts . | . . . . . . . Triggered . | . . . . . . . Disarmed . | . . . . . . . Reprogrammed . | . . . . . . . Reused . | . . . . . . . Traps Extracted . | . . . . . . . Installed . | . . . . . . . Triggered . | . . . . . . . Machines | -11 -10 -10 -10 -9 -8 -7 ---------- Run | Yrd Mat Min Exi Min Mat Fac Machines Disabled 5 | . 1 . . 1 1 2 Max in Single Turn 2 | . 1 . . 1 . 2 Machines Repaired . | . . . . . . . Machines Dismantled 1 | . 1 . . . . . Machines Sabotaged . | . . . . . . . Overloaded Fab Kills . | . . . . . . . Hacking | -11 -10 -10 -10 -9 -8 -7 --------- Run | Yrd Mat Min Exi Min Mat Fac Machines Accessed 30 | . 6 . 2 1 10 11 Terminals 24 | . 6 . . . 9 9 Fabricators . | . . . . . . . Repair Stations 2 | . . . . . 1 1 Recycling Units . | . . . . . . . Scanalyzers . | . . . . . . . Garrison Access 1 | . . . . . . 1 Total Hacks 108 | . 18 . 32 1 34 23 Successful 72 | . 11 . 32 1 21 7 Failed 35 | . 7 . . . 12 16 Catastrophic 4 | . . . . . . 4 Database Lockouts 1 | . . . . . 1 . Manual 56 | . 15 . . . 27 14 Terminals 68 | . 18 . . . 33 17 Fabricators . | . . . . . . . Repair Stations 6 | . . . . . 1 5 Recycling Units . | . . . . . . . Scanalyzers . | . . . . . . . Garrison Access 1 | . . . . . . 1 Terminal Hacks 46 | . 3 . 32 1 9 1 Record 32 | . . . 32 . . . Part Schematic 2 | . . . . . 2 . Prototype ID Bank 1 | . . . . . 1 . Open Door 1 | . . . . 1 . . Level Access Points 1 | . . . . . 1 . Branch Access Points 1 | . . . . . 1 . Terminal Index 1 | . 1 . . . . . Alert Level 1 | . . . . . 1 . Unreport Threat 1 | . . . . . 1 . Locate Traps 1 | . 1 . . . . . Hauler Manifests 1 | . . . . . 1 . Zone Layout 3 | . 1 . . . 1 1 Fabricator Hacks . | . . . . . . . Repair Station Hacks 3 | . . . . . . 3 Scan Component 2 | . . . . . . 2 Repair 1 | . . . . . . 1 Recycling Unit Hacks . | . . . . . . . Scanalyzer . | . . . . . . . Garrison Access Hacks . | . . . . . . . Unauthorized Hacks 22 | . 7 . . . 12 3 Terminals 22 | . 7 . . . 12 3 Botnet 12 | . 3 . . . 6 3 Skim 10 | . 4 . . . 6 . Fabricators . | . . . . . . . Repair Stations . | . . . . . . . Recycling Units . | . . . . . . . Scanalyzers . | . . . . . . . Garrison Access . | . . . . . . . Data Cores Recovered 1 | . . . . . . 1 Used 1 | . . . . . . 1 Hacking Detections 25 | . 6 . . . 9 10 Full Trace Events 3 | . . . . . 2 1 Feedback Events . | . . . . . . . Feedback Blocked . | . . . . . . . Robot Schematics Acquired . | . . . . . . . Robots Built . | . . . . . . . Authchips . | . . . . . . . Time . | . . . . . . . Total Robot Build Rating . | . . . . . . . Part Schematics Acquired 2 | . . . . . 2 . Parts Built . | . . . . . . . Authchips . | . . . . . . . Time . | . . . . . . . Total Part Build Rating . | . . . . . . . Parts Repaired 1 | . . . . . . 1 Time 32 | . . . . . . 32 Parts Recycled . | . . . . . . . Recycled Matter . | . . . . . . . Retrieved Matter . | . . . . . . . Retrieved Components . | . . . . . . . Parts Scanalyzed . | . . . . . . . Part Schematics Acquired . | . . . . . . . Parts Damaged . | . . . . . . . Bothacking | -11 -10 -10 -10 -9 -8 -7 ------------ Run | Yrd Mat Min Exi Min Mat Fac Used RIF Installer . | . . . . . . . Robots Hacked . | . . . . . . . Non-combat . | . . . . . . . Combat . | . . . . . . . Robot Hacks Applied . | . . . . . . . Relay Couplers Released . | . . . . . . . Fabnet Peak Effective % . | . . . . . . . Robots Rewired . | . . . . . . . Allies Hacked . | . . . . . . . Hacks Repelled . | . . . . . . . Allies | -11 -10 -10 -10 -9 -8 -7 -------- Run | Yrd Mat Min Exi Min Mat Fac Total Allies 1 | . . . . 1 . . Largest Group 1 | . . . . 1 1 . Highest-Rated Group 31 | . . . . 31 31 . Highest-Rated Ally 31 | . . . . 31 31 . Total Orders 4 | . . . . . 4 . EXPLORE 4 | . . . . . 4 . Ally Attacks 53 | . . . . 4 49 . Total Damage 568 | . . . . 44 524 . Kills 8 | . . . . 1 7 . Allies Corrupted . | . . . . . . . Allies Melted 1 | . . . . 1 . . Intel | -11 -10 -10 -10 -9 -8 -7 ------- Run | Yrd Mat Min Exi Min Mat Fac Active Infowar (turns) 5953 | 28 1410 424 . 1002 514 2575 Seismic 5953 | 28 1410 424 . 1002 514 2575 Robot Analysis Total . | . . . . . . . Derelict Logs Recovered 2 | . . 1 . 1 . . Drone Launches 10 | . . . . . 10 . Drone Recoveries . | . . . . . . . Exploration | -11 -10 -10 -10 -9 -8 -7 ------------- Run | Yrd Mat Min Exi Min Mat Fac Turns Passed 10216 | 139 1412 658 693 1098 2471 3745 Spaces Moved 5306 | 72 748 340 433 624 1109 1980 Core 7 | 4 . . . . . 3 Treads 3988 | 68 748 340 433 624 1109 666 Legs 1311 | . . . . . . 1311 Wheels . | . . . . . . . Hover . | . . . . . . . Flight . | . . . . . . . Fastest Speed 50 | 50 160 160 160 160 160 140 Average Speed 157 | 155 160 160 160 160 170 148 Slowest Speed 1100 | 160 160 160 160 160 240 1100 Overloaded Moves . | . . . . . . . Propulsion Burnouts . | . . . . . . . Robots Hopped . | . . . . . . . Potential Cave-ins . | . . . . . . . Cave-ins Triggered . | . . . . . . . Exploration Rate (%) 67 | 4 88 64 84 94 91 50 Regions Visited 6 Branch Regions 3 Pre-discovered Areas 4 | . . 1 1 . 2 . Known Exits Taken 1 | . . . . . 1 . Unknown Exits Taken 5 | 1 1 1 1 1 . . Scrap Searched 2 | . . . . 2 . . Spaces Dug . | . . . . . . . Terrain Destroyed 130 | . . . . 83 13 34 Melee . | . . . . . . . Projectile 2 | . . . . . . 2 AOE 128 | . . . . 83 13 32 Terrain Rammed . | . . . . . . . Walls Destroyed . | . . . . . . . Machines Disabled . | . . . . . . . Actions | -11 -10 -10 -10 -9 -8 -7 --------- Run | Yrd Mat Min Exi Min Mat Fac Total 6630 | 89 893 437 434 705 1523 2549 Wait 797 | 2 74 82 . 50 251 338 Move 5300 | 71 747 339 432 623 1108 1980 Hop . | . . . . . . . Pick Up 69 | 5 7 2 1 5 18 31 Fast Attach 26 | 7 5 1 . 1 6 6 Attach 22 | . . 1 . . 11 10 Detach 11 | . 2 . . . 6 3 Swap 70 | 1 10 1 . 8 13 37 Drop 61 | . 7 . 1 5 17 31 Fire 262 | 3 37 10 . 12 89 111 Melee . | . . . . . . . Ram . | . . . . . . . Kick 1 | . . . . . . 1 Crush 7 | . . 1 . 1 4 1 Escape Stasis . | . . . . . . . Rewire . | . . . . . . . Trap . | . . . . . . . Miscellaneous 4 | . 4 . . . . . Route ------- -11/Scrapyard -10/Materials (discovered 5 exits: *Mat x3 / [*Min] / [*Sub]) -10/Mines (discovered 3 exits: *Mat / *Exi / [*Sub]) -10/Exiles -9/Mines (discovered 2 exits: *Mat x2) -8/Materials (discovered 3 exits: *Fac x3) -7/Factory (discovered 6 exits: *Fac x4 / *Low x2) History --------- Turn | Location | Event 9 | -11/Scrapyard | Discovered new exit (range 15) 140 | -11/Scrapyard | Entered Materials 237 | -10/Materials | Discovered new exit (range 8) 312 | -10/Materials | Identified exit to Materials 334 | -10/Materials | Build established: Mutant 758 | -10/Materials | Discovered new exit (range 13) 1013 | -10/Materials | Discovered new exit (range 8) 1096 | -10/Materials | Discovered exit to Materials (range 15) 1431 | -10/Materials | Discovered exit to Materials (range 10) 1552 | -10/Materials | Entered Mines 1568 | -10/Mines | Met a Derelict bent on vengeance 1863 | -10/Mines | Assembled infested the area 1983 | -10/Mines | Core integrity fell below 50% 2030 | -10/Mines | Discovered new exit (range 8) 2116 | -10/Mines | Learned location of Storage (-9) 2127 | -10/Mines | Discovered exit to Materials (range 8) 2202 | -10/Mines | Deemed a non-threat by the Exiles lab entrance 2204 | -10/Mines | Discovered new exit (range 5) 2210 | -10/Mines | Entered Exiles 2247 | -10/Exiles | Met 8R-AWN 2278 | -10/Exiles | Met EX-HEX 2361 | -10/Exiles | Met EX-DEC 2399 | -10/Exiles | Visited The Gauntlet 2607 | -10/Exiles | Discovered new exit (range 14) 2682 | -10/Exiles | Learned location of Zion (-7) 2726 | -10/Exiles | Met EX-BIN 2903 | -10/Exiles | Entered Mines 2985 | -9/Mines | Learned 4 Materials zone layouts 3245 | -9/Mines | Joined a pair of Derelicts in attacking an 0b10 outpost 3405 | -9/Mines | Found the Drone Emporium 3413 | -9/Mines | Found Prototype Device 3697 | -9/Mines | Met a Derelict testing a Signal Generator 3822 | -9/Mines | Discovered new exit (range 10) 3883 | -9/Mines | Discovered new exit (range 10) 4001 | -9/Mines | Entered Materials 4001 | -8/Materials | Accompanied by 1 ally 4001 | -8/Materials | Evolved 4 slots: Propulsion x1, Utility x2, Weapon x1 4301 | -8/Materials | Build established: Scavenger-Tank 4452 | -8/Materials | Lost 4 parts (2n2u) 4455 | -8/Materials | Destroyed 7 combat bots 4494 | -8/Materials | Identified Bomb Drone Bay 4651 | -8/Materials | Lost 8 allies 5140 | -8/Materials | Discovered new exit (range 9) 5454 | -8/Materials | Central database locked down 5484 | -8/Materials | Build established: Gunner 5495 | -8/Materials | Learned Storage stockpile data 5528 | -8/Materials | Learned Factory repair station intel 5552 | -8/Materials | Learned location of 3 exits from Factory 5564 | -8/Materials | Identified exit to Factory 5571 | -8/Materials | Learned location of 2 exits from Factory 5575 | -8/Materials | Learned Factory stockpile data 6472 | -8/Materials | Entered Factory 6472 | -7/Factory | Evolved 2 slots: Propulsion x1, Utility x1 6473 | -7/Factory | Identified exit to Factory 6474 | -7/Factory | Identified exit to Lower Caves 6476 | -7/Factory | Loaded intel: 6 repair station locations 6779 | -7/Factory | Build established: Scavenger-Gunner 7116 | -7/Factory | Garrison activated, responded to threat 7546 | -7/Factory | Repaired Imp. Ion Engine 8050 | -7/Factory | Build established: Gunner 8293 | -7/Factory | Garrison activated, responded to threat 10187 | -7/Factory | Destroyed 7 combat bots 10217 | -7/Factory | Self-destructed Last Messages --------------- 10206_ U-05 Engineer lays Concrete. 10207_ R-06 Scavenger collects Lgt. Treads. 10207_ U-05 Engineer lays Concrete. 10208_ System corrupted: Imp. Deuterium Engine rejected. 10208_ U-05 Engineer lays Concrete. 10209_ K-01 Serf collects debris. 10209_ Acquired Imp. Deuterium Engine. 10209_ U-05 Engineer lays Concrete. 10211_ Slug penetrates Wall. 10211_ Slug penetrates Y-54 Guardian. 10211_ Gauss Rifle destroyed. 10212_ U-05 Engineer lays Concrete. 10212_ K-01 Serf collects debris. 10213_ U-05 Engineer lays Concrete. 10213_ U-05 Engineer builds a Door. 10213_ U-05 Engineer lays Concrete. 10214_ Slug penetrates Y-54 Guardian. 10215_ K-01 Serf collects debris. 10215_ U-05 Engineer lays Concrete. Map ----- +----------------------------------------------------+ | ????????????????????????????????????????????# | | ????????????????????????????????????????????# | | ????????????????????????????????????????????# | | ????????????????????????????????????????????# | | ?????????????????????????????????????######## | | ?????????????" ?????????????????????# | | ??????????? ?????????????????????# | | ????????? ????????????????????+ | | ?????????? ??????"??????????????# | | ?????????? ??????"??????????????# | | ??????????? ?????? ??????????????####+### | | ??????????? ?????! ??????????????????? # | | ???????????# #???? ??????????????#??? # | | ???????????# #??###s############??# """ # | | ???????????# #### # #### """ # | | ???????????# ## uu /p # """ # | | ???????????# ### ## #?# "" # | | ???????????# ###### #### "" # | | ???????????# ## + # ## # | | ???????????# ## # u # ## + | | ???????????# r + ### # | | ??????????## # ########## | | ??????????# # | | ??????????# k # # | | ???? + # | | ???? # u @ ## """""" | | ?????""""?# ##/# #### ## # """""" | | ?????"""??# # Y = ########## """""" | | ??????????# # #! # """""" | | ??????????# # # """" # | | ??????????# # # """" # | | ??######### # #[ """" # | | ?? # " " # """" # [[ | | ????# # ""G"" ! #= """"*=# [[ | | ????# # # """"!=# [ | | ????# ########+## """"%%+ | | ???????? """" ####???# ## % ^ | | ???????? """" "" #???# ## [*# | | ???????? """" """#???# ## # ####### | | ???????? """" R"#???# ######## ## ##????? | | ???????? """" """##### ####???# # ## "" | | ???????? """" ##### ####### ## "" | | ????# """" ##### ## "" | | ????# ## | | ????### """ % ## "" | | ??????# """ ## "" | | ??????# """ ##### ## "" | | ???????? #???# ####### ## | | ??????? #???#########?????# ###### | | ??????# #?????????????????### ###???# | +----------------------------------------------------+ Best States ------------- Heat Dissipation 34 Energy Generation 16 Energy Capacity 290 Matter Stores 300 Matter Capacity 300 Sight Range 16 Terrain Scan Density 10 Armor Coverage 300 Evasion (%) 55 Targeting Accuracy 8 Recoil Reduction 4 Kinecelleration 30 Offensive Hacking 10 Item Schematics ----------------- Imp. Treads | -8/Materials | Hacked Hcp. Storage Unit | -8/Materials | Hacked Robot Schematics ------------------ None Fabricated ------------ Nothing Repaired ---------- Imp. Ion Engine | 42% | -7/Factory Alien Tech Used ----------------- None Achievements -------------- root@ Challenges ------------ None Game ------ Seed OmegaVoltaicCharger Manual? 0 Play Time 01:37:17 Cumulative 37.9 hours Start 2025.06.14 @ 09:55:17 End 2025.06.14 @ 11:38:36 Sessions 1 Manual Loads 0 Difficulty Rogue Special Mode None Game No. 30 Rogue 23 Adventurer 7 Explorer 0 Win Type - Total 0 Types 0/0/0/0/0/0/0/0/0/0 Lore% 23 Gallery% 21 Achievement% 24 Wizard Run 0 Options --------- Layout 1 ASCII 0 Keyboard 1 Movement Numpad Keybinds 0 Fullscreen 2 Font 32/SmallcapsGlow Map View 50x35 Zoom Use 0% Tactical HUD 1 Map Filters NONE Filters NONE Steam 1 RUN: eb22b3e8-6d98-4644-8fa9-865c5eac39be